fUSD/lending_fUSD_20260320
["ID","MTS","AMOUNT","RATE_DAILY","PERIOD"]
[408650689,1774047728667,-300.0,0.00047397,120]
[408650690,1774047728706,-300.0,0.00047397,120]
[408650691,1774047728745,-300.0,0.00047397,120]
[408650692,1774047728788,-300.0,0.00047397,120]
[408650693,1774047728827,-300.0,0.00047397,120]
[408650694,1774047728866,-300.0,0.00047397,120]
[408650695,1774047728905,-300.0,0.00047397,120]
[408650696,1774047728945,-300.0,0.00047397,120]
[408650697,1774047728985,-300.0,0.00047397,120]
[408650698,1774047729187,-300.0,0.00047397,120]
[408650699,1774047729227,-300.0,0.00047397,120]
[408650700,1774047729268,-300.0,0.00047397,120]
[408650701,1774047729309,-300.0,0.00047397,120]
[408650702,1774047729348,-300.0,0.00047397,120]
[408650703,1774047729386,-300.0,0.00047397,120]
[408650704,1774047729425,-300.0,0.00047397,120]
[408650705,1774047729464,-300.0,0.00047397,120]
[408650706,1774047729503,-300.0,0.00047397,120]
[408650707,1774047729541,-300.0,0.00047397,120]
[408650708,1774047729578,-300.0,0.00047397,120]
[408650709,1774047729616,-300.0,0.00047397,120]
[408650710,1774047729654,-300.0,0.00047397,120]
[408650711,1774047729692,-300.0,0.00047397,120]
[408650712,1774047729729,-300.0,0.00047397,120]
[408650713,1774047729773,-300.0,0.00047397,120]
[408650714,1774047729812,-300.0,0.00047397,120]
[408650715,1774047729851,-300.0,0.00047397,120]
[408650716,1774047729889,-300.0,0.00047397,120]
[408650717,1774047729928,-300.0,0.00047397,120]
[408650718,1774047729964,-300.0,0.00047397,120]
[408650719,1774047730001,-300.0,0.00047397,120]
[408650720,1774047730039,-300.0,0.00047397,120]
[408650721,1774047730077,-300.0,0.00047397,120]
[408650722,1774047730115,-300.0,0.00047397,120]
[408650723,1774047730152,-300.0,0.00047397,120]
[408650724,1774047730190,-300.0,0.00047397,120]
[408650725,1774047730228,-300.0,0.00047397,120]
[408650726,1774047730265,-300.0,0.00047397,120]
[408650727,1774047730302,-300.0,0.00047397,120]
[408650728,1774047730337,-114090.44380388,0.000474,120]
[408650729,1774047730374,-14430.680758,0.000474,120]
[408650730,1774047730411,-200.0,0.000474,30]
[408650731,1774047730449,-5090.13,0.000474,120]
[408650732,1774047730487,-3316.57,0.000474,120]
[408650733,1774047730523,-3216.7,0.000474,120]
[408650734,1774047730559,-456.08584669,0.00047405,120]
[408650735,1774047730596,-202.99,0.0004741,120]
[408650736,1774047730633,-100971.27963482,0.0004742,60]
[408650737,1774047730670,-2000.0,0.0004743,120]
[408650738,1774047730706,-2000.0,0.0004744,120]
[408650739,1774047730744,-536.7501493,0.0004745,120]
[408650740,1774047730781,-763.92087793,0.00047458,120]
[408650741,1774047730818,-2210.92,0.00047459,120]
[408650742,1774047730854,-491.44686451,0.00047477,120]
[408650743,1774047730893,-50000.0,0.000475,46]
[408650744,1774047730931,-40406.33048022,0.000475,43]
[408650745,1774047730968,-99995.0,0.000475,120]
[408650746,1774047731007,-5000000.0,0.000475,120]
[408650747,1774047731047,-2227964.94628987,0.000475,120]
[408650748,1774047736556,-606.93,0.00029697,120]
[408650749,1774047736598,-5242.59,0.00042,120]
[408650750,1774047736637,-5242.59,0.0004368,120]
[408650751,1774047736680,-500.0,0.00045536,120]
[408650752,1774047736719,-606.93,0.00046059,120]
[408650753,1774047736758,-606.93,0.00047054,120]
[408650754,1774047736797,-606.93,0.00047054,120]
[408650755,1774047736838,-606.93,0.00047054,120]
[408650756,1774047736876,-606.93,0.00047054,120]
[408650757,1774047736914,-606.93,0.00047054,120]
[408650758,1774047736953,-606.93,0.00047054,120]
[408650759,1774047737145,-606.93,0.00047163,120]
[408650760,1774047737190,-606.93,0.00047169,120]
[408650761,1774047737233,-606.93,0.00047169,120]
[408650762,1774047737273,-606.93,0.00047169,120]
[408650763,1774047737312,-606.93,0.00047169,120]
[408650764,1774047737351,-606.93,0.00047169,120]
[408650765,1774047737392,-606.93,0.00047169,120]
[408650766,1774047737430,-606.93,0.00047169,120]
[408650767,1774047737473,-607.02880339,0.00047169,120]
[408650768,1774047737512,-1878.63,0.00047244,120]
[408650769,1774047737549,-7598652.9171423,0.0004744,30]
[408650770,1774047737590,-378165.36405431,0.000475,120]
[408650771,1774047742077,-500.0,0.00046632,120]
[408650772,1774047742128,-2393869.68965582,0.000475,120]
[408650773,1774047742169,-499956.6297124,0.000475,120]
[408650774,1774047742209,-250000.0,0.000475,30]
[408650775,1774047742248,-3644861.94891985,0.000475,120]
[408650776,1774047742286,-86365.03014031,0.000475,30]
[408650777,1774047742323,-23150.0,0.000475,30]
[408650778,1774047742360,-5000.0,0.000475,120]
[408650779,1774047742397,-70796.4343394,0.000475,120]
[408650780,1774047742435,-31060.0,0.000475,120]
[408650781,1774047742472,-11000.0,0.000475,120]
[408650782,1774047742521,-5000.0,0.000475,120]
[408650783,1774047742564,-252.09013646,0.000475,120]
[408650784,1774047742602,-154.10043013,0.000475,30]
[408650785,1774047742640,-154.83526741,0.000475,30]
[408650786,1774047742681,-1341.93750675,0.000475,120]
[408650787,1774047742721,-151.0,0.000475,30]
[408650788,1774047742763,-151.0,0.000475,120]
[408650789,1774047742804,-431.953744,0.000475,120]
[408650790,1774047742846,-431.953744,0.000475,120]
[408650791,1774047742886,-431.953744,0.000475,120]
[408650792,1774047742925,-431.953744,0.000475,120]
[408650793,1774047742963,-151.0,0.000475,120]
[408650794,1774047743002,-151.0,0.000475,120]
[408650795,1774047743039,-151.0,0.000475,120]
[408650796,1774047743079,-270.653524,0.000475,120]
[408650797,1774047743124,-166.62325,0.000475,120]
[408650798,1774047743164,-166.62325,0.000475,120]
[408650799,1774047743205,-166.62325,0.000475,120]
[408650800,1774047743244,-166.62325,0.000475,120]
[408650801,1774047743282,-151.0,0.000475,120]
[408650802,1774047743324,-151.0,0.000475,120]
[408650803,1774047743366,-306.283989,0.000475,120]
[408650804,1774047743409,-385.056412,0.000475,120]
[408650805,1774047743454,-385.056412,0.000475,120]
[408650806,1774047743497,-385.056412,0.000475,120]
[408650807,1774047743542,-385.056412,0.000475,120]
[408650808,1774047743584,-385.056412,0.000475,120]
[408650809,1774047743629,-385.056412,0.000475,120]
[408650810,1774047743678,-385.056412,0.000475,120]
[408650811,1774047743725,-385.056412,0.000475,120]
[408650812,1774047743772,-271.739248,0.000475,120]
[408650813,1774047743815,-151.0,0.000475,60]
[408650814,1774047743854,-151.0,0.000475,60]
[408650815,1774047743896,-151.0,0.000475,120]
[408650816,1774047743935,-151.0,0.000475,120]
[408650817,1774047743974,-151.0,0.000475,120]
[408650818,1774047744014,-151.0,0.000475,120]
[408650819,1774047744054,-289.93,0.00047506,30]
[408650820,1774047744096,-202.99,0.0004751,120]
[408650821,1774047744136,-2000.0,0.0004755,120]
[408650822,1774047744176,-2000.0,0.0004758,120]
[408650823,1774047744215,-8693.0,0.00047586,120]
[408650824,1774047744255,-5000.0,0.0004759,120]
[408650825,1774047744295,-159864.08214423,0.0004759,120]
[408650826,1774047744340,-50000.0,0.000476,120]
[408650827,1774047744382,-135616.24123341,0.000476,30]
[408650828,1774047744425,-171.25,0.000476,120]
[408650829,1774047744469,-205.27,0.000476,120]
[408650830,1774047744513,-202.99,0.0004761,120]
[408650831,1774047744552,-2000.0,0.0004766,120]
[408650832,1774047744592,-602005.11448083,0.0004769,120]
[408650833,1774047748683,-397994.88551917,0.0004769,120]
[408650834,1774047748722,-5000.0,0.000477,120]
[408650835,1774047748763,-941.28664687,0.000477,120]
[408650836,1774047748801,-2045.0,0.000477,120]
[408650837,1774047748845,-173118.0,0.000477,60]
[408650838,1774047748884,-202.99,0.0004771,120]
[408650839,1774047748921,-151.0,0.00047726,110]
[408650840,1774047748957,-151.0,0.00047726,110]
[408650841,1774047748995,-151.0,0.00047726,120]
[408650842,1774047749032,-238.40799417,0.00047726,120]
[408650843,1774047749070,-600.0,0.00047728,120]
[408650844,1774047749110,-500.0,0.00047728,120]
[408650845,1774047749148,-500.0,0.00047738,30]
[408650846,1774047749189,-500.0,0.00047738,38]
[408650847,1774047749228,-500.0,0.00047738,41]
[408650848,1774047749269,-500.0,0.00047738,55]
[408650849,1774047749308,-500.0,0.00047738,57]
[408650850,1774047749348,-500.0,0.00047738,59]
[408650851,1774047749387,-500.0,0.00047738,60]
[408650852,1774047749427,-500.0,0.00047738,30]
[408650853,1774047749467,-500.0,0.00047738,38]
[408650854,1774047749506,-500.0,0.00047738,41]
[408650855,1774047749543,-500.0,0.00047738,55]
[408650856,1774047749580,-500.0,0.00047738,57]
[408650857,1774047749619,-500.0,0.00047738,59]
[408650858,1774047749657,-500.0,0.00047738,60]
[408650859,1774047749694,-525.24029739,0.00047739,120]
[408650860,1774047749732,-24480.92731689,0.00047739,120]
[408650861,1774047749772,-525.24029739,0.00047745,120]
[408650862,1774047749811,-24480.92731689,0.00047745,120]
[408650863,1774047749849,-151.0,0.00047745,60]
[408650864,1774047749887,-2210.92,0.00047749,120]
[408650865,1774047749928,-873.05243192,0.00047763,120]
[408650866,1774047749964,-12837.06,0.00047778,60]
[408650867,1774047750000,-50000.0,0.000478,120]
[408650868,1774047750037,-1879.318268,0.000478,120]
[408650869,1774047750073,-62480.40574232,0.000478,120]
[408650870,1774047750110,-50000.0,0.000478,40]
[408650871,1774047750148,-50000.0,0.000478,50]
[408650872,1774047750186,-50000.0,0.000478,70]
[408650873,1774047750227,-50000.0,0.000478,80]
[408650874,1774047750264,-50000.0,0.000478,100]
[408650875,1774047750300,-10000.0,0.000478,120]
[408650876,1774047750338,-5000.0,0.000478,120]
[408650877,1774047750378,-202.99,0.0004781,120]
[408650878,1774047750416,-525.24029739,0.00047813,120]
[408650879,1774047750454,-24480.92731689,0.00047813,120]
[408650880,1774047750491,-150000.0,0.000479,120]
[408650881,1774047750527,-150000.0,0.000479,120]
[408650882,1774047750567,-50040.0,0.000479,120]
[408650883,1774047750607,-202.99,0.0004791,120]
[408650884,1774047750644,-50000.0,0.00047945,85]
[408650885,1774047750682,-526.53044307,0.00047961,120]
[408650886,1774047750719,-404.3997652,0.00047965,120]
[408650887,1774047750762,-500000.0,0.00047999,120]
[408650888,1774047750801,-500000.0,0.00047999,90]
[408650889,1774047750842,-250.0,0.00048,120]
[408650890,1774047750884,-50000.0,0.00048,120]
[408650891,1774047750923,-10642.108976,0.00048,120]
[408650892,1774047750963,-185.34244805,0.00048,120]
[408650893,1774047751001,-322.95446796,0.00048,120]
[408650894,1774047751039,-299.0,0.00048,120]
[408650895,1774047751076,-3522.64972541,0.00048,90]
[408650896,1774047751112,-5000.0,0.00048,120]
[408650897,1774047751150,-407.75878507,0.00048,120]
[408650898,1774047751188,-168.10930725,0.00048,120]
[408650899,1774047751238,-2258.96853319,0.00048,120]
[408650900,1774047751277,-120000.0,0.00048,120]
[408650901,1774047751315,-1285.32932546,0.00048,120]
[408650902,1774047751352,-7244.018487,0.00048,30]
[408650903,1774047751391,-3402.0,0.00048,120]
[408650904,1774047751429,-281.8193363,0.00048,120]
[408650905,1774047751470,-10000.0,0.00048,30]
[408650906,1774047751508,-19080.0,0.00048,30]
[408650907,1774047751546,-863.48580027,0.00048,120]
[408650908,1774047751584,-298.6767626,0.00048,120]
[408650909,1774047751622,-7592.09007845,0.00048,120]
[408650910,1774047751661,-3700.0,0.00048,120]
[408650911,1774047751700,-153.0,0.00048,120]
[408650912,1774047751742,-979.16666667,0.00048,120]
[408650913,1774047751781,-979.16666667,0.00048,30]
[408650914,1774047751824,-202.99,0.0004801,120]
[408650915,1774047751864,-2210.92,0.00048038,120]
[408650916,1774047751902,-1000.0,0.00048057,120]
[408650917,1774047751949,-192.07,0.00048066,120]
[408650918,1774047751987,-1018.56117057,0.00048067,120]
[408650919,1774047752219,-2000.0,0.000481,120]
[408650920,1774047752260,-2000.0,0.000481,120]
[408650921,1774047752300,-5000.0,0.000481,120]
[408650922,1774047752338,-5000.0,0.000481,120]
[408650923,1774047752380,-202.99,0.0004811,120]
[408650924,1774047752423,-159.0,0.00048164,120]
[408650925,1774047752468,-50000.0,0.000482,120]
[408650926,1774047752513,-2000.0,0.000482,120]
[408650927,1774047752555,-2000.0,0.000482,120]
[408650928,1774047752593,-5000.0,0.000482,120]
[408650929,1774047752631,-50000.0,0.000482,32]
[408650930,1774047752669,-5000.0,0.000482,120]
[408650931,1774047752712,-202.99,0.0004821,120]
[408650932,1774047752752,-450.8,0.00048266,30]
[408650934,1774047752794,-350.96,0.00048266,30]
[408650935,1774047752838,-500.0,0.00048276,120]
[408650936,1774047752882,-202.99,0.0004831,120]
[408650937,1774047752923,-2210.92,0.00048328,120]
[408650938,1774047752963,-150.41032918,0.00048343,120]
[408650939,1774047753002,-150.0,0.00048348,120]
[408650940,1774047753043,-244.40004301,0.00048369,120]
[408650941,1774047753082,-1222.27340469,0.00048371,120]
[408650942,1774047753124,-50000.0,0.000484,120]
[408650943,1774047753161,-244.52078827,0.00048407,120]
[408650944,1774047753203,-202.99,0.0004841,120]
[408650945,1774047753242,-150.0,0.00048419,120]
[408650946,1774047753283,-500.0,0.00048493,120]
[408650947,1774047753321,-500000.0,0.00048499,90]
[408650948,1774047753360,-3111.1655039,0.000485,120]
[408650949,1774047753400,-5000.0,0.000485,120]
[408650950,1774047753442,-50000.0,0.000485,33]
[408650951,1774047753481,-166.13608564,0.000485,120]
[408650952,1774047753519,-3869.62672621,0.000485,120]
[408650953,1774047753562,-216694.29796252,0.000485,30]
[408650954,1774047753601,-202.99,0.0004851,120]
[408650955,1774047753639,-350.0,0.00048521,120]
[408650956,1774047753676,-8187.20297023,0.00048569,120]
[408650957,1774047753713,-50000.0,0.000486,120]
[408650958,1774047753754,-20000.0,0.000486,120]
[408650959,1774047753795,-24400.0,0.000486,120]
[408650960,1774047753835,-340.4663,0.000486,120]
[408650961,1774047753875,-2210.92,0.00048617,120]
[408650962,1774047753914,-30000.0,0.0004863,120]
[408650963,1774047753952,-1527.84175586,0.00048676,120]
[408650964,1774047753990,-795.49653013,0.0004869,120]
[408650965,1774047754027,-197.31,0.000487,120]
[408650966,1774047754066,-202.99,0.0004871,120]
[408650967,1774047754107,-388.73842419,0.00048737,114]
[408650968,1774047754145,-502.6,0.00048767,120]
[408650969,1774047754183,-1062.03322853,0.00048798,120]
[408650970,1774047754223,-50000.0,0.00048799,120]
[408650971,1774047754263,-554489.0705948,0.000488,120]
[408650972,1774047754303,-50000.0,0.000488,105]
[408650973,1774047754342,-25117.56554608,0.000488,115]
[408650974,1774047754380,-82985.86783248,0.000488,120]
[408650975,1774047754418,-388.32906283,0.000488,30]
[408650976,1774047754456,-44271.63608202,0.000488,120]
[408650977,1774047754493,-151.0,0.000488,30]
[408650978,1774047754531,-151.0,0.000488,120]
[408650979,1774047754570,-431.953744,0.000488,120]
[408650980,1774047754612,-431.953744,0.000488,120]
[408650981,1774047754651,-431.953744,0.000488,120]
[408650982,1774047754692,-431.953744,0.000488,120]
[408650983,1774047754731,-151.0,0.000488,120]
[408650984,1774047754781,-151.0,0.000488,120]
[408650985,1774047754821,-151.0,0.000488,120]
[408650986,1774047754861,-166.62325,0.000488,120]
[408650987,1774047754900,-151.0,0.000488,120]
[408650988,1774047754941,-385.056412,0.000488,120]
[408650989,1774047754981,-385.056412,0.000488,120]
[408650990,1774047755021,-385.056412,0.000488,120]
[408650991,1774047755062,-385.056412,0.000488,120]
[408650992,1774047755101,-216.335129,0.000488,120]
[408650993,1774047755138,-202.804032,0.000488,120]
[408650994,1774047755176,-101000.0,0.000488,35]
[408650995,1774047755213,-5000.0,0.000488,120]
[408650996,1774047755264,-202.99,0.0004881,120]
[408650997,1774047755308,-600.0,0.00048824,120]
[408650998,1774047755349,-21000.0,0.0004883,120]
[408650999,1774047755394,-16689.52866516,0.00048875,60]
[408651000,1774047755440,-1269.70496969,0.00048886,120]
[408651001,1774047755483,-6500.29224144,0.00048888,120]
[408651002,1774047755528,-9157.95905933,0.00048889,120]
[408651003,1774047755571,-561.02204649,0.00048899,120]
[408651004,1774047755612,-49999.0,0.000489,120]
[408651005,1774047755651,-1499.59599387,0.000489,120]
[408651006,1774047755696,-160.42599238,0.000489,120]
[408651007,1774047755740,-65546.68,0.000489,120]
[408651008,1774047755784,-949.2235504,0.000489,30]
[408651009,1774047755827,-150000.0,0.000489,120]
[408651010,1774047755874,-100000.0,0.000489,120]
[408651011,1774047755919,-21074.59,0.000489,120]
[408651012,1774047755965,-152.85496334,0.000489,120]
[408651013,1774047756010,-152.85496334,0.000489,120]
[408651014,1774047756057,-152.85496334,0.000489,120]
[408651015,1774047756101,-152.85496334,0.000489,120]
[408651016,1774047756143,-152.85496334,0.000489,120]
[408651017,1774047756187,-2210.92,0.00048907,120]
[408651018,1774047756235,-202.99,0.0004891,120]
[408651019,1774047756277,-2037.12234115,0.0004898,120]
[408651020,1774047756319,-216.0,0.0004899,30]
[408651021,1774047756358,-218.0,0.0004899,30]
[408651022,1774047756396,-500.72746333,0.00049,120]
[408651023,1774047756438,-280000.0,0.00049,120]
[408651024,1774047756484,-8000.0,0.00049,30]
[408651025,1774047756522,-6391.166992,0.00049,120]
[408651026,1774047756559,-30826.0,0.00049,120]
[408651027,1774047756599,-581.88362455,0.00049,30]
[408651028,1774047756640,-363018.18913728,0.00049,30]
[408651029,1774047756680,-50000.0,0.00049,120]
[408651030,1774047756719,-12461.96030766,0.00049,30]
[408651031,1774047756758,-259.06694861,0.00049,90]
[408651032,1774047756798,-1609.32,0.00049,60]
[408651033,1774047756839,-2000.0,0.00049,60]
[408651034,1774047756878,-2000.0,0.00049,60]
[408651035,1774047756917,-288.21,0.00049,120]
[408651036,1774047756960,-1759.73798226,0.00049,120]
[408651037,1774047757001,-12225.34307339,0.00049,120]
[408651038,1774047757044,-159.28821804,0.00049,120]
[408651039,1774047757084,-383.98128673,0.00049,120]
[408651040,1774047757122,-153.82881745,0.00049,30]
[408651041,1774047757162,-172.46690708,0.00049,120]
[408651042,1774047757201,-619.56415886,0.00049,120]
[408651043,1774047757241,-7270.39960726,0.00049,30]
[408651044,1774047757279,-100000.0,0.00049,60]
[408651045,1774047757320,-300.0,0.00049,120]
[408651046,1774047757360,-81000.0,0.00049,33]
[408651047,1774047757401,-15330.7744318,0.00049,30]
[408651048,1774047757441,-5423.35046282,0.00049,120]
[408651049,1774047757482,-1052.3282905,0.00049,120]
[408651050,1774047757522,-221.99731682,0.00049,120]
[408651051,1774047757562,-6139.60276605,0.00049,120]
[408651052,1774047757602,-350.0,0.00049,120]
[408651053,1774047757641,-80000.0,0.00049,120]
[408651054,1774047757682,-3400.0,0.00049,120]
[408651055,1774047757721,-15315.0,0.00049,120]
[408651056,1774047757764,-28734.02699239,0.00049,120]
[408651057,1774047757813,-267.22487167,0.00049,120]
[408651058,1774047757855,-202.99,0.0004901,120]
[408651059,1774047757895,-416.5,0.00049015,120]
[408651060,1774047757936,-173118.0,0.0004905,60]
[408651061,1774047757976,-422.13200291,0.00049066,90]
[408651062,1774047758013,-159.28821804,0.000491,120]
[408651063,1774047758053,-202.99,0.0004911,120]
[408651064,1774047758091,-1587.98747304,0.0004914,115]
[408651065,1774047758128,-159.0,0.00049164,120]
[408651066,1774047758165,-116975.50041438,0.0004919,120]
[408651067,1774047758203,-2210.92,0.00049196,120]
[408651068,1774047758240,-50000.0,0.000492,120]
[408651069,1774047758277,-10000.0,0.000492,30]
[408651070,1774047758314,-159.28821804,0.000492,120]
[408651071,1774047758351,-159.28,0.000492,120]
[408651072,1774047758641,-2375.33,0.000492,120]
[408651073,1774047758681,-160.0,0.000492,120]
[408651074,1774047758720,-202.99,0.0004921,120]
[408651075,1774047758756,-1565.56323854,0.00049262,120]
[408651076,1774047758793,-99248.80894096,0.00049268,120]
[408651077,1774047758831,-3055.68351172,0.00049285,120]
[408651078,1774047758868,-100000.0,0.000493,30]
[408651079,1774047758908,-5000.0,0.000493,120]
[408651080,1774047758947,-911.61781728,0.000493,120]
[408651081,1774047758985,-159.28821804,0.000493,120]
[408651082,1774047759024,-202.99,0.0004931,120]
[408651083,1774047759062,-525.24029739,0.00049315,120]
[408651084,1774047759100,-24480.92731689,0.00049315,120]
[408651085,1774047759147,-500.0,0.00049315,120]
[408651086,1774047759184,-342.15826757,0.00049315,120]
[408651087,1774047759221,-210288.07248555,0.00049315,120]
[408651088,1774047759259,-2914.2,0.00049315,120]
[408651089,1774047759296,-1999.0,0.00049315,120]
[408651090,1774047759334,-50000.0,0.00049315,90]
[408651091,1774047759482,154.10725798,0.0004718,120]
[408651092,1774047759576,309.18528336,0.00049,120]
[408651093,1774047759633,151.0,0.000488,120]
[408651094,1774047759702,979.16666667,0.00044,120]
[408651095,1774047759753,288.742603,0.000488,120]
[408651096,1774047759815,151.0,0.000488,120]
[408651097,1774047759894,288.742603,0.000488,120]
[408651098,1774047759953,151.0,0.000488,120]
[408651099,1774047760006,151.0,0.000488,120]
[408651100,1774047760094,288.742603,0.000488,120]
[408651101,1774047760164,151.0,0.000488,120]
[408651102,1774047760229,288.742603,0.000488,120]
[408651103,1774047760322,1000.0,0.00049015,120]
[408651104,1774047760375,170.3,0.000423,30]
[408651105,1774047760429,1000.0,0.00049015,120]
[408651106,1774047760474,1000.0,0.00049015,120]
[408651107,1774047760518,273.05,0.00049314,30]
[408651108,1774047760565,708.25,0.00049015,120]
[408651109,1774047760681,1000.0,0.00049315,30]
[408651110,1774047761105,1000.0,0.00049315,30]
[408651111,1774047761525,1000.0,0.00049315,30]
[408651112,1774047762738,354.12,0.00049015,120]
[408651113,1774047764108,177.06,0.00049015,120]
[408651117,1774047866432,150.0,0.000159,120]
[408651123,1774048052140,219.92,0.000159,120]
[408651128,1774048231860,-250.0,0.000133,2]
[408651129,1774048231872,-3.83271447,0.000133,2]
[408651130,1774048231884,-500.16728553,0.000133,2]
[408651131,1774048231894,-259.0,0.000133,2]
[408651132,1774048231903,-500.0,0.00013717,2]
[408651133,1774048231913,-640.63946901,0.00013717,2]
[408651134,1774048231921,-450.0,0.00013776,2]
[408651136,1774048231930,-300.0,0.00013819,14]
[408651138,1774048231939,-1200.0,0.00014001,2]
[408651139,1774048231949,-300.0,0.00014001,2]
[408651140,1774048231958,-15467.4691,0.00014002,2]
[408651141,1774048231968,-150.0,0.00014101,2]
[408651142,1774048231978,-240.0,0.00014101,2]
[408651143,1774048231987,-52337.04145444,0.00014102,2]
[408651151,1774048237832,-255.81419352,0.00014102,2]
[408651152,1774048237844,-545.33232993,0.00014102,2]
[408651153,1774048237855,-713.50810772,0.00014102,2]
[408651154,1774048237868,-615.21547425,0.00014102,2]
[408651155,1774048237894,-1609.62885592,0.00014102,2]
[408651156,1774048237903,-1962.33,0.00014158,2]
[408651157,1774048237914,-172.759798,0.00014173,2]
[408651158,1774048237957,-327.240202,0.00014173,2]
[408651159,1774048237966,-500.0,0.00014173,2]
[408651160,1774048237975,-220.23567427,0.00014173,2]
[408651161,1774048237984,-543.10920901,0.00014173,2]
[408651162,1774048237993,-500.0,0.00014173,2]
[408651163,1774048238002,-135.87238826,0.00014173,2]
[408651164,1774048238014,-24.28332843,0.00014173,2]
[408651165,1774048238023,-234.31667157,0.00014173,2]
[408651166,1774048238034,-265.68332843,0.00014173,2]
[408651167,1774048238043,-118.05267157,0.00014173,2]
[408651168,1774048238055,-42.10777942,0.00014173,2]
[408651169,1774048238064,-160.15758174,0.00014173,2]
[408651170,1774048238073,-160.15765775,0.00014173,2]
[408651171,1774048238082,-160.15748287,0.00014173,2]
[408651172,1774048238092,-500.0,0.00014173,2]
[408651173,1774048238101,-160.15905562,0.00014173,2]
[408651174,1774048238111,-160.15769488,0.00014173,2]
[408651175,1774048238120,-500.0,0.00014173,2]
[408651176,1774048238129,-369.73783683,0.00014173,2]
[408651177,1774048238138,-500.0,0.00014173,2]
[408651178,1774048238148,-500.0,0.00014173,2]
[408651179,1774048238157,-500.0,0.00014173,2]
[408651180,1774048238166,-500.0,0.00014173,2]
[408651181,1774048238175,-28.95846373,0.00014173,2]
[408651182,1774048238187,-359.6502052,0.00014173,2]
[408651183,1774048238196,-408.78157032,0.00014173,2]
[408651184,1774048238206,-500.0,0.00014173,2]
[408651185,1774048238215,-500.15528333,0.00014173,2]
[408651186,1774048238225,-500.0,0.00014173,2]
[408651187,1774048238234,-500.0,0.00014173,2]
[408651188,1774048238243,-500.0,0.00014173,2]
[408651189,1774048238253,-500.0,0.000143,2]
[408651190,1774048238262,-150.0,0.000143,2]
[408651191,1774048238272,-2238.0,0.00014362,2]
[408651192,1774048238281,-500.0,0.00014378,2]
[408651193,1774048238291,-123.81294115,0.00014378,2]
[408651204,1774048240020,-376.18705885,0.00014378,2]
[408651206,1774048240029,-82.68607979,0.00014378,2]
[408651214,1774048240254,-77.60507256,0.00014378,2]
[408651215,1774048240264,-260.1430775,0.00014378,2]
[408651216,1774048240273,-160.15749861,0.00014378,2]
[408651217,1774048240282,-160.15603234,0.00014378,2]
[408651218,1774048240291,-160.14469802,0.00014378,2]
[408651219,1774048240301,-500.0,0.00014378,2]
[408651220,1774048240310,-500.0,0.00014378,2]
[408651221,1774048240319,-838.0,0.00014544,2]
[408651222,1774048240329,-151.0,0.00014621,2]
[408651223,1774048240338,-151.0,0.00014621,2]
[408651224,1774048240348,-151.0,0.00014621,2]
[408651225,1774048240357,-151.0,0.00014621,2]
[408651226,1774048240367,-151.0,0.00014621,2]
[408651227,1774048240376,-151.0,0.00014621,2]
[408651228,1774048240385,-151.0,0.00014621,2]